[Event "Early-Titled-Tuesday-Blitz-October-03-2023"]
[Site "Chess.com"]
[Date "2023.10.03"]
[Round "7"]
[White "baki83"]
[Black "Grischuk"]
[Result "0-1"]
[WhiteElo "2829"]
[BlackElo "3007"]
[TimeControl "180+1"]
[EndTime "9:21:17 PDT"]
[Termination "Grischuk won on time"]

1. e4 {[%clk 0:03:00.9]} 1... e5 {[%clk 0:02:57.5]} 2. Nf3 {[%clk 0:03:00.6]}
2... Nc6 {[%clk 0:02:58]} 3. Bb5 {[%clk 0:03:00.7]} 3... a6 {[%clk 0:02:55.5]}
4. Ba4 {[%clk 0:03:01]} 4... Bc5 {[%clk 0:02:55.2]} 5. O-O {[%clk 0:02:59.9]}
5... Nge7 {[%clk 0:02:51.6]} 6. c3 {[%clk 0:02:59.5]} 6... Ng6 {[%clk
0:02:51.5]} 7. d4 {[%clk 0:02:59.4]} 7... Ba7 {[%clk 0:02:51.9]} 8. Bg5 {[%clk
0:02:57.2]} 8... f6 {[%clk 0:02:52.3]} 9. Be3 {[%clk 0:02:57.8]} 9... O-O {[%clk
0:02:52.9]} 10. Nbd2 {[%clk 0:02:57.1]} 10... d6 {[%clk 0:02:53.2]} 11. Re1
{[%clk 0:02:53.4]} 11... Kh8 {[%clk 0:02:52.7]} 12. h3 {[%clk 0:02:48.7]} 12...
Bd7 {[%clk 0:02:52.3]} 13. Rc1 {[%clk 0:02:46.1]} 13... Qe8 {[%clk 0:02:38]} 14.
Bxc6 {[%clk 0:02:35]} 14... Bxc6 {[%clk 0:02:31.5]} 15. c4 {[%clk 0:02:31.3]}
15... a5 {[%clk 0:01:52.4]} 16. Qb3 {[%clk 0:02:22.5]} 16... a4 {[%clk
0:01:49.9]} 17. Qa3 {[%clk 0:02:06.1]} 17... exd4 {[%clk 0:01:29.2]} 18. Bxd4
{[%clk 0:01:54.9]} 18... Bxd4 {[%clk 0:01:20.2]} 19. Nxd4 {[%clk 0:01:54.8]}
19... b6 {[%clk 0:01:21.1]} 20. Qg3 {[%clk 0:01:47.2]} 20... Bb7 {[%clk
0:01:11.7]} 21. f4 {[%clk 0:01:45.2]} 21... Qf7 {[%clk 0:01:08.7]} 22. Kh2
{[%clk 0:01:37.3]} 22... Rfe8 {[%clk 0:01:08.2]} 23. Re3 {[%clk 0:01:29]} 23...
Nf8 {[%clk 0:01:04.3]} 24. Rce1 {[%clk 0:01:11.6]} 24... Ne6 {[%clk 0:01:04.1]}
25. Nf5 {[%clk 0:01:08.4]} 25... Nc5 {[%clk 0:01:00.6]} 26. Qh4 {[%clk 0:00:51]}
26... Bc8 {[%clk 0:00:49.4]} 27. Ng3 {[%clk 0:00:45.1]} 27... Bd7 {[%clk
0:00:44.2]} 28. Nh5 {[%clk 0:00:45.1]} 28... Re7 {[%clk 0:00:39.5]} 29. Rg3
{[%clk 0:00:44.5]} 29... Rg8 {[%clk 0:00:26.2]} 30. e5 {[%clk 0:00:38.9]} 30...
dxe5 {[%clk 0:00:09.3]} 31. fxe5 {[%clk 0:00:39.3]} 31... Rxe5 {[%clk
0:00:09.6]} 32. Rxe5 {[%clk 0:00:39.4]} 32... fxe5 {[%clk 0:00:10.5]} 33. Nf3
{[%clk 0:00:39.8]} 33... Be8 {[%clk 0:00:10.4]} 34. Rg5 {[%clk 0:00:26.8]} 34...
Nd7 {[%clk 0:00:09]} 35. Nxe5 {[%clk 0:00:15.9]} 35... Nxe5 {[%clk 0:00:09.2]}
36. Rxe5 {[%clk 0:00:16.5]} 36... Qf8 {[%clk 0:00:06]} 37. Nf4 {[%clk
0:00:12.6]} 37... Bf7 {[%clk 0:00:05.7]} 38. Rf5 {[%clk 0:00:11.9]} 38... Qe8
{[%clk 0:00:05.3]} 39. Qg5 {[%clk 0:00:08.7]} 39... Rf8 {[%clk 0:00:03.7]} 40.
Re5 {[%clk 0:00:06.8]} 40... Qd8 {[%clk 0:00:03.4]} 41. Re7 {[%clk 0:00:06.8]}
41... Rg8 {[%clk 0:00:02.4]} 42. Nd5 {[%clk 0:00:04.8]} 42... Bxd5 {[%clk
0:00:02.2]} 43. cxd5 {[%clk 0:00:05.4]} 43... Qd6+ {[%clk 0:00:02.8]} 44. Kh1
{[%clk 0:00:05.7]} 44... h6 {[%clk 0:00:03.3]} 45. Qe5 {[%clk 0:00:03.7]} 45...
Qxe5 {[%clk 0:00:03.2]} 46. Rxe5 {[%clk 0:00:03.8]} 46... Rd8 {[%clk 0:00:04.1]}
47. Kg1 {[%clk 0:00:03.6]} 47... Kg8 {[%clk 0:00:04.1]} 48. Kf2 {[%clk 0:00:04]}
48... Kf7 {[%clk 0:00:04.8]} 49. Ke3 {[%clk 0:00:04.6]} 49... Kf6 {[%clk
0:00:04.5]} 50. Kd4 {[%clk 0:00:04.6]} 50... Rd6 {[%clk 0:00:04.9]} 51. Ke4
{[%clk 0:00:03.5]} 51... g6 {[%clk 0:00:03.3]} 52. Re8 {[%clk 0:00:03.3]} 52...
c6 {[%clk 0:00:02.9]} 53. dxc6 {[%clk 0:00:03]} 53... Rxc6 {[%clk 0:00:03.8]}
54. Ra8 {[%clk 0:00:03.1]} 54... b5 {[%clk 0:00:03.3]} 55. b3 {[%clk 0:00:01.9]}
55... axb3 {[%clk 0:00:03]} 56. axb3 {[%clk 0:00:02.8]} 56... Rc3 {[%clk
0:00:03.5]} 57. h4 {[%clk 0:00:02.2]} 57... Rxb3 {[%clk 0:00:03.7]} 58. Ra6+
{[%clk 0:00:02.9]} 58... Kf7 {[%clk 0:00:04.2]} 59. Ra7+ {[%clk 0:00:03.6]}
59... Kf6 {[%clk 0:00:04.7]} 60. Ra6+ {[%clk 0:00:04.2]} 60... Kf7 {[%clk
0:00:05]} 61. Ra7+ {[%clk 0:00:04.9]} 61... Ke6 {[%clk 0:00:05.3]} 62. Ra6+
{[%clk 0:00:05.5]} 62... Kd7 {[%clk 0:00:05.6]} 63. Rxg6 {[%clk 0:00:05.5]}
63... Rb4+ {[%clk 0:00:06]} 64. Kf3 {[%clk 0:00:04.5]} 64... Rxh4 {[%clk
0:00:06.9]} 65. Rb6 {[%clk 0:00:04.4]} 65... Rh5 {[%clk 0:00:05.1]} 66. g4
{[%clk 0:00:04.8]} 66... Kc7 {[%clk 0:00:05.3]} 67. Re6 {[%clk 0:00:03.2]} 67...
Rh3+ {[%clk 0:00:04.5]} 68. Kg2 {[%clk 0:00:03.6]} 68... Rd3 {[%clk 0:00:04.3]}
69. Rxh6 {[%clk 0:00:03.6]} 69... b4 {[%clk 0:00:04.9]} 70. Rh1 {[%clk
0:00:03.7]} 70... b3 {[%clk 0:00:05.3]} 71. Rb1 {[%clk 0:00:03.1]} 71... Kd6
{[%clk 0:00:04]} 72. g5 {[%clk 0:00:03.7]} 72... Kc5 {[%clk 0:00:04.3]} 73. g6
{[%clk 0:00:04.3]} 73... Kb4 {[%clk 0:00:04.5]} 74. Kf2 {[%clk 0:00:04.6]} 74...
Rd7 {[%clk 0:00:04]} 75. Rg1 {[%clk 0:00:04.5]} 75... Rg7 {[%clk 0:00:03.6]} 76.
Ke3 {[%clk 0:00:04.6]} 76... b2 {[%clk 0:00:04.2]} 77. Kd2 {[%clk 0:00:01.7]}
77... Kb3 {[%clk 0:00:04.7]} 0-1

[Event "Early-Titled-Tuesday-Blitz-October-03-2023"]
[Site "Chess.com"]
[Date "2023.10.03"]
[Round "7"]
[White "FERNANDEZL1983"]
[Black "Shuvalov"]
[Result "1/2-1/2"]
[WhiteElo "2588"]
[BlackElo "2467"]
[TimeControl "180+1"]
[EndTime "9:21:19 PDT"]
[Termination "Game drawn - insufficient material"]

1. e4 {[%clk 0:03:00.9]} 1... e6 {[%clk 0:03:00]} 2. d4 {[%clk 0:03:00.5]} 2...
d5 {[%clk 0:03:00.3]} 3. Nd2 {[%clk 0:03:00.1]} 3... c5 {[%clk 0:02:59.7]} 4.
Ngf3 {[%clk 0:03:00.5]} 4... Nc6 {[%clk 0:02:59.5]} 5. exd5 {[%clk 0:03:00.2]}
5... exd5 {[%clk 0:03:00.4]} 6. Bb5 {[%clk 0:02:58.3]} 6... Qe7+ {[%clk
0:02:59.9]} 7. Qe2 {[%clk 0:02:53.9]} 7... Qxe2+ {[%clk 0:03:00]} 8. Kxe2 {[%clk
0:02:53.6]} 8... a6 {[%clk 0:03:00.3]} 9. Bxc6+ {[%clk 0:02:53.2]} 9... bxc6
{[%clk 0:03:01.2]} 10. dxc5 {[%clk 0:02:51.8]} 10... Bxc5 {[%clk 0:03:00.9]} 11.
Nb3 {[%clk 0:02:52.4]} 11... Bd6 {[%clk 0:03:00.3]} 12. Re1 {[%clk 0:02:52.1]}
12... f6 {[%clk 0:02:56.5]} 13. Be3 {[%clk 0:02:50.7]} 13... Ne7 {[%clk
0:02:54.4]} 14. Bc5 {[%clk 0:02:51.1]} 14... Kd7 {[%clk 0:02:53.7]} 15. Bxd6
{[%clk 0:02:49.9]} 15... Kxd6 {[%clk 0:02:54.1]} 16. Kd2 {[%clk 0:02:50]} 16...
c5 {[%clk 0:02:37.1]} 17. c3 {[%clk 0:02:47.8]} 17... Bg4 {[%clk 0:02:33.4]} 18.
Ng1 {[%clk 0:02:45.6]} 18... Rhe8 {[%clk 0:02:28.6]} 19. h3 {[%clk 0:02:44.7]}
19... Bd7 {[%clk 0:02:25.4]} 20. Ne2 {[%clk 0:02:44.9]} 20... Ng6 {[%clk
0:02:21.2]} 21. Na5 {[%clk 0:02:35.1]} 21... Rab8 {[%clk 0:02:14.5]} 22. Rab1
{[%clk 0:02:09.2]} 22... Bf5 {[%clk 0:02:12.2]} 23. b4 {[%clk 0:02:08.4]} 23...
Bxb1 {[%clk 0:02:08.9]} 24. Rxb1 {[%clk 0:02:08.7]} 24... cxb4 {[%clk
0:02:00.6]} 25. cxb4 {[%clk 0:02:08.8]} 25... Ne5 {[%clk 0:01:59.7]} 26. Nd4
{[%clk 0:02:05.6]} 26... g6 {[%clk 0:01:54.8]} 27. a3 {[%clk 0:02:04.3]} 27...
Rec8 {[%clk 0:01:53.2]} 28. Re1 {[%clk 0:01:50.4]} 28... Re8 {[%clk 0:01:51.2]}
29. Rc1 {[%clk 0:01:48.8]} 29... Rbc8 {[%clk 0:01:49.7]} 30. Nb7+ {[%clk
0:01:48]} 30... Ke7 {[%clk 0:01:44.8]} 31. Nc5 {[%clk 0:01:47.7]} 31... Nc4+
{[%clk 0:01:41.9]} 32. Kd3 {[%clk 0:01:47.7]} 32... a5 {[%clk 0:01:37.1]} 33.
Nc2 {[%clk 0:01:34.8]} 33... Kf7 {[%clk 0:01:30.4]} 34. Nb3 {[%clk 0:01:29.6]}
34... axb4 {[%clk 0:01:26.4]} 35. axb4 {[%clk 0:01:30.1]} 35... Ne5+ {[%clk
0:01:22.5]} 36. Kd2 {[%clk 0:01:28.2]} 36... Rc4 {[%clk 0:01:20.4]} 37. Na5
{[%clk 0:01:23.2]} 37... Rc7 {[%clk 0:01:18.7]} 38. Ne3 {[%clk 0:01:20.6]} 38...
Rxc1 {[%clk 0:01:17.6]} 39. Kxc1 {[%clk 0:01:21]} 39... Nd3+ {[%clk 0:01:18.2]}
40. Kd2 {[%clk 0:01:21.1]} 40... Nxb4 {[%clk 0:01:18.7]} 41. Nb3 {[%clk
0:01:21]} 41... Re4 {[%clk 0:01:11.2]} 42. f3 {[%clk 0:01:19]} 42... Re8 {[%clk
0:01:10.6]} 43. Nd4 {[%clk 0:01:17.1]} 43... Rc8 {[%clk 0:01:07.8]} 44. Nb5
{[%clk 0:01:16.3]} 44... Ke7 {[%clk 0:01:03.9]} 45. h4 {[%clk 0:01:13.4]} 45...
h5 {[%clk 0:01:02.9]} 46. Nd4 {[%clk 0:01:10.6]} 46... Kd6 {[%clk 0:00:59.9]}
47. g4 {[%clk 0:01:09.7]} 47... Nc6 {[%clk 0:00:53.8]} 48. Ne2 {[%clk
0:01:05.6]} 48... Ne5 {[%clk 0:00:52.5]} 49. Nd4 {[%clk 0:01:02.6]} 49... Ra8
{[%clk 0:00:48.7]} 50. gxh5 {[%clk 0:00:59.8]} 50... gxh5 {[%clk 0:00:49.6]} 51.
Nef5+ {[%clk 0:00:59.8]} 51... Kc5 {[%clk 0:00:47.9]} 52. Ne6+ {[%clk
0:00:58.3]} 52... Kb4 {[%clk 0:00:44.1]} 53. f4 {[%clk 0:00:56.9]} 53... Nc6
{[%clk 0:00:40.7]} 54. Neg7 {[%clk 0:00:51.1]} 54... Ra2+ {[%clk 0:00:40]} 55.
Kd3 {[%clk 0:00:50.4]} 55... Ra3+ {[%clk 0:00:40.3]} 56. Kd2 {[%clk 0:00:50.5]}
56... Kc5 {[%clk 0:00:33.7]} 57. Nxh5 {[%clk 0:00:49.2]} 57... Nd4 {[%clk
0:00:34]} 58. Ne7 {[%clk 0:00:43.6]} 58... Ra2+ {[%clk 0:00:32.4]} 59. Kd3
{[%clk 0:00:43.2]} 59... Ra3+ {[%clk 0:00:32.8]} 60. Kd2 {[%clk 0:00:43.3]}
60... Rh3 {[%clk 0:00:32.7]} 61. Ng6 {[%clk 0:00:42.7]} 61... Nf5 {[%clk
0:00:31.5]} 62. Nxf6 {[%clk 0:00:41.6]} 62... Nxh4 {[%clk 0:00:30.5]} 63. Ne5
{[%clk 0:00:40.4]} 63... Nf3+ {[%clk 0:00:29.8]} 64. Ke2 {[%clk 0:00:38.1]}
64... Nxe5 {[%clk 0:00:29.7]} 65. fxe5 {[%clk 0:00:38.4]} 65... Rh6 {[%clk
0:00:26.2]} 66. Ke3 {[%clk 0:00:36.3]} 66... d4+ {[%clk 0:00:25.8]} 67. Ke4
{[%clk 0:00:34.9]} 67... Rh4+ {[%clk 0:00:26.1]} 68. Kf5 {[%clk 0:00:32.1]}
68... d3 {[%clk 0:00:25.2]} 69. e6 {[%clk 0:00:28.6]} 69... d2 {[%clk
0:00:23.9]} 70. e7 {[%clk 0:00:28.9]} 70... Rh8 {[%clk 0:00:23.3]} 71. Ne4+
{[%clk 0:00:28.1]} 71... Kc6 {[%clk 0:00:20.2]} 72. Nxd2 {[%clk 0:00:26.9]}
72... Kd7 {[%clk 0:00:20.5]} 73. Kf6 {[%clk 0:00:26.7]} 73... Re8 {[%clk
0:00:19.8]} 74. Nc4 {[%clk 0:00:26]} 74... Rxe7 {[%clk 0:00:19.7]} 75. Ne5+
{[%clk 0:00:26.7]} 75... Ke8 {[%clk 0:00:19.8]} 76. Ng6 {[%clk 0:00:26.6]} 76...
Ra7 {[%clk 0:00:19.6]} 77. Nf4 {[%clk 0:00:25.8]} 77... Ra6+ {[%clk 0:00:19]}
78. Ke5 {[%clk 0:00:26]} 78... Kf7 {[%clk 0:00:19]} 79. Nd5 {[%clk 0:00:25.5]}
79... Ra5 {[%clk 0:00:19.2]} 80. Kd6 {[%clk 0:00:25.2]} 80... Ra1 {[%clk
0:00:18.3]} 81. Ke5 {[%clk 0:00:24.9]} 81... Rd1 {[%clk 0:00:19.2]} 82. Kd6
{[%clk 0:00:22.8]} 82... Kg6 {[%clk 0:00:19.2]} 83. Ke5 {[%clk 0:00:23]} 83...
Kg5 {[%clk 0:00:19.1]} 84. Ne3 {[%clk 0:00:21.3]} 84... Re1 {[%clk 0:00:19.1]}
85. Ke4 {[%clk 0:00:21.9]} 85... Ra1 {[%clk 0:00:18.1]} 86. Nd5 {[%clk
0:00:21.1]} 86... Ra8 {[%clk 0:00:19]} 87. Kd4 {[%clk 0:00:19.8]} 87... Re8
{[%clk 0:00:19.9]} 88. Nc3 {[%clk 0:00:19.5]} 88... Kf4 {[%clk 0:00:19.8]} 89.
Nd5+ {[%clk 0:00:19.5]} 89... Kf5 {[%clk 0:00:19.7]} 90. Kc5 {[%clk 0:00:19.6]}
90... Rd8 {[%clk 0:00:19.4]} 91. Nb4 {[%clk 0:00:19.2]} 91... Ke5 {[%clk
0:00:19.7]} 92. Nc6+ {[%clk 0:00:19.4]} 92... Ke6 {[%clk 0:00:20.1]} 93. Nxd8+
{[%clk 0:00:20.3]} 1/2-1/2

[Event "Early-Titled-Tuesday-Blitz-October-03-2023"]
[Site "Chess.com"]
[Date "2023.10.03"]
[Round "7"]
[White "DenLaz"]
[Black "JimDiGrease"]
[Result "0-1"]
[WhiteElo "3060"]
[BlackElo "2937"]
[TimeControl "180+1"]
[EndTime "9:21:40 PDT"]
[Termination "JimDiGrease won by resignation"]

1. d4 {[%clk 0:03:00.9]} 1... d5 {[%clk 0:02:52.7]} 2. c4 {[%clk 0:03:00.2]}
2... e6 {[%clk 0:02:52.6]} 3. Nf3 {[%clk 0:03:00.3]} 3... Nf6 {[%clk 0:02:52]}
4. g3 {[%clk 0:03:00.8]} 4... dxc4 {[%clk 0:02:49.5]} 5. Bg2 {[%clk 0:03:00.4]}
5... Bb4+ {[%clk 0:02:50.1]} 6. Bd2 {[%clk 0:03:00]} 6... c5 {[%clk 0:02:50.7]}
7. Bxb4 {[%clk 0:02:49]} 7... cxb4 {[%clk 0:02:51.6]} 8. Ne5 {[%clk 0:02:48.6]}
8... O-O {[%clk 0:02:50.2]} 9. a3 {[%clk 0:02:43.3]} 9... Nd5 {[%clk 0:02:50.5]}
10. O-O {[%clk 0:02:39.9]} 10... a5 {[%clk 0:02:48.9]} 11. Nxc4 {[%clk
0:02:34.5]} 11... Nc6 {[%clk 0:02:47]} 12. axb4 {[%clk 0:02:30.3]} 12... Ndxb4
{[%clk 0:02:40.8]} 13. e3 {[%clk 0:02:30.5]} 13... b6 {[%clk 0:02:25.5]} 14. Ne5
{[%clk 0:02:07.6]} 14... Nxe5 {[%clk 0:02:06.1]} 15. Bxa8 {[%clk 0:02:05.1]}
15... Ba6 {[%clk 0:02:06.6]} 16. Bg2 {[%clk 0:01:58.1]} 16... Bxf1 {[%clk
0:01:51.7]} 17. Bxf1 {[%clk 0:01:46.3]} 17... Nec6 {[%clk 0:01:40.7]} 18. Nc3
{[%clk 0:01:40.2]} 18... Qd7 {[%clk 0:01:36.9]} 19. Rc1 {[%clk 0:01:39.5]} 19...
h6 {[%clk 0:01:28.7]} 20. Qf3 {[%clk 0:01:34]} 20... Rc8 {[%clk 0:01:20.7]} 21.
Na4 {[%clk 0:01:25]} 21... Qd8 {[%clk 0:01:16.6]} 22. Kg2 {[%clk 0:01:14.7]}
22... e5 {[%clk 0:00:57]} 23. Bc4 {[%clk 0:01:01.8]} 23... Rc7 {[%clk
0:00:41.6]} 24. d5 {[%clk 0:00:23.7]} 24... Nb8 {[%clk 0:00:24.1]} 25. d6 {[%clk
0:00:21.4]} 25... Qxd6 {[%clk 0:00:19.2]} 26. Rd1 {[%clk 0:00:22]} 26... Qf6
{[%clk 0:00:12]} 27. Qxf6 {[%clk 0:00:19.7]} 27... gxf6 {[%clk 0:00:12.9]} 28.
Nxb6 {[%clk 0:00:17.6]} 28... Kg7 {[%clk 0:00:08.9]} 29. b3 {[%clk 0:00:15.7]}
29... N8c6 {[%clk 0:00:08.9]} 30. Rd6 {[%clk 0:00:13.7]} 30... Ne7 {[%clk
0:00:07.2]} 31. Rd7 {[%clk 0:00:13.1]} 31... Rxd7 {[%clk 0:00:07.1]} 32. Nxd7
{[%clk 0:00:14]} 32... Nf5 {[%clk 0:00:06.3]} 33. Nc5 {[%clk 0:00:11.6]} 33...
Nd6 {[%clk 0:00:07]} 34. Be2 {[%clk 0:00:11.4]} 34... Nd5 {[%clk 0:00:05.7]} 35.
Bf3 {[%clk 0:00:07.9]} 35... Nc3 {[%clk 0:00:06]} 36. Kf1 {[%clk 0:00:06.6]}
36... f5 {[%clk 0:00:06]} 37. Ke1 {[%clk 0:00:06.6]} 37... e4 {[%clk 0:00:06.7]}
38. Be2 {[%clk 0:00:05.9]} 38... Kf6 {[%clk 0:00:04.6]} 39. Bf1 {[%clk
0:00:05.9]} 39... Ke5 {[%clk 0:00:03.8]} 40. Kd2 {[%clk 0:00:06.6]} 40... Nd5
{[%clk 0:00:03.4]} 41. Be2 {[%clk 0:00:06.8]} 41... Nb4 {[%clk 0:00:02.2]} 42.
Na4 {[%clk 0:00:07.1]} 42... Nc6 {[%clk 0:00:02.4]} 43. Kc3 {[%clk 0:00:06.4]}
43... Kd5 {[%clk 0:00:02.6]} 44. Kd2 {[%clk 0:00:04.8]} 44... Ke5 {[%clk
0:00:02.9]} 45. Nb2 {[%clk 0:00:04.8]} 45... Kd5 {[%clk 0:00:02.4]} 46. Bf1
{[%clk 0:00:05.3]} 46... Kc5 {[%clk 0:00:02.5]} 47. h3 {[%clk 0:00:05.8]} 47...
Kb4 {[%clk 0:00:03.1]} 48. Kc2 {[%clk 0:00:06.2]} 48... Ka3 {[%clk 0:00:02.1]}
49. Nc4+ {[%clk 0:00:04.7]} 49... Nxc4 {[%clk 0:00:02.5]} 50. Bxc4 {[%clk
0:00:05.6]} 50... f6 {[%clk 0:00:03.1]} 51. Be6 {[%clk 0:00:04.8]} 51... Nb4+
{[%clk 0:00:03.6]} 52. Kc3 {[%clk 0:00:04.5]} 52... Nd3 {[%clk 0:00:04.5]} 53.
Bxf5 {[%clk 0:00:04.8]} 53... Nxf2 {[%clk 0:00:04.9]} 54. h4 {[%clk 0:00:03.7]}
54... Nh1 {[%clk 0:00:05]} 55. Bxe4 {[%clk 0:00:02.7]} 55... Nxg3 {[%clk
0:00:05.3]} 56. Bd3 {[%clk 0:00:03.4]} 56... Nh1 {[%clk 0:00:03.8]} 57. Bf5
{[%clk 0:00:02.6]} 57... Nf2 {[%clk 0:00:04.6]} 58. Bc2 {[%clk 0:00:02.5]} 58...
Ng4 {[%clk 0:00:04.7]} 59. Kd4 {[%clk 0:00:02.8]} 59... Kb2 {[%clk 0:00:04.1]}
60. Bd1 {[%clk 0:00:03.3]} 60... Nf2 {[%clk 0:00:04]} 61. Bh5 {[%clk 0:00:03.5]}
61... Kxb3 {[%clk 0:00:04.5]} 62. Bf7+ {[%clk 0:00:04.1]} 62... Kb4 {[%clk
0:00:05.2]} 63. e4 {[%clk 0:00:02.3]} 63... Ng4 {[%clk 0:00:05]} 64. Kd5 {[%clk
0:00:01.8]} 64... a4 {[%clk 0:00:05.3]} 65. Ke6 {[%clk 0:00:01.7]} 65... Ne5
{[%clk 0:00:04.8]} 66. Bg8 {[%clk 0:00:01.1]} 66... a3 {[%clk 0:00:04.4]} 67.
Kxf6 {[%clk 0:00:01.8]} 67... Nc4 {[%clk 0:00:05.1]} 68. e5 {[%clk 0:00:02]}
68... a2 {[%clk 0:00:05.7]} 69. Bxc4 {[%clk 0:00:02.8]} 69... a1=Q {[%clk
0:00:06.6]} 70. Be6 {[%clk 0:00:02.7]} 70... Kc5 {[%clk 0:00:07.1]} 71. Bf7
{[%clk 0:00:03.1]} 71... Qf1+ {[%clk 0:00:05.6]} 72. Ke7 {[%clk 0:00:03.5]}
72... Kc6 {[%clk 0:00:05.9]} 73. e6 {[%clk 0:00:03.7]} 73... Qf4 {[%clk
0:00:03.9]} 74. Kf8 {[%clk 0:00:04.1]} 74... Qb8+ {[%clk 0:00:03.9]} 75. Ke7
{[%clk 0:00:03.4]} 75... Qe5 {[%clk 0:00:04.2]} 76. Be8+ {[%clk 0:00:02.6]}
76... Kc7 {[%clk 0:00:04.2]} 77. Bf7 {[%clk 0:00:03.5]} 77... Qf4 {[%clk
0:00:04]} 78. Kf8 {[%clk 0:00:03.4]} 78... Qd6+ {[%clk 0:00:02.2]} 79. Kg7
{[%clk 0:00:03.8]} 79... Qe7 {[%clk 0:00:02.3]} 80. h5 {[%clk 0:00:03.8]} 80...
Qg5+ {[%clk 0:00:02.6]} 81. Kf8 {[%clk 0:00:04.3]} 81... Kd6 {[%clk 0:00:03.5]}
82. Bg6 {[%clk 0:00:03.6]} 82... Kxe6 {[%clk 0:00:03.6]} 0-1